[Event "Superettan 2017/2018"]
[Site "Vegagatan 20, Gothenburg, Sweden"]
[Date "2018.02.02"]
[Round "1.14"]
[White "Svenn, Gosta"]
[Black "Lindahl, Emil"]
[Result "1-0"]
[TimeControl "90 minutes for 40 moves + 30 minutes for the rest of the game + 30 seconds per move from move one."]
[WhiteTitle "FM"]
[WhiteFideId "1700553"]
[BlackFideId "1713116"]
[WhiteElo "2307"]
[BlackElo "2177"]

1. Nf3 {[%clk 01:30:51]} {[%emt 00:00:07]} Nf6 {[%clk 01:30:51]} {[%emt
00:00:11]} 2. c4 {[%clk 01:31:13]} {[%emt 00:00:08]} c5 {[%clk 01:30:51]}
{[%emt 00:00:29]} 3. g3 {[%clk 01:31:17]} {[%emt 00:00:26]} b6 {[%clk
01:31:08]} {[%emt 00:00:14]} 4. Bg2 {[%clk 01:31:40]} {[%emt 00:00:06]} Bb7
{[%clk 01:31:37]} 5. O-O {[%clk 01:31:53]} {[%emt 00:00:17]} e6 {[%clk
01:31:50]} {[%emt 00:00:18]} 6. Nc3 {[%clk 01:31:17]} {[%emt 00:01:05]} Be7
{[%clk 01:31:57]} {[%emt 00:00:23]} 7. Re1 {[%clk 01:26:12]} {[%emt 00:05:35]}
O-O {[%clk 01:27:34]} {[%emt 00:04:53]} 8. e4 {[%clk 01:26:16]} {[%emt
00:00:26]} d6 {[%clk 01:27:33]} {[%emt 00:00:32]} 9. d4 {[%clk 01:26:34]}
{[%emt 00:00:11]} cxd4 {[%clk 01:27:23]} {[%emt 00:00:40]} 10. Nxd4 {[%clk
01:26:58]} {[%emt 00:00:06]} Qc8 {[%clk 01:11:15]} {[%emt 00:16:38]} 11. b3
{[%clk 01:27:03]} {[%emt 00:00:24]} Nbd7 {[%clk 01:06:20]} {[%emt 00:05:25]} 12.
Bb2 {[%clk 01:21:48]} {[%emt 00:05:45]} a6 {[%clk 01:05:55]} {[%emt 00:00:55]}
13. Rc1 {[%clk 01:21:42]} {[%emt 00:00:35]} Re8 {[%clk 01:00:11]} {[%emt
00:32:45]} 14. h3 {[%clk 01:09:00]} Qc7 {[%clk 00:58:11]} 15. Qe2 {[%clk
00:58:15]} {[%emt 00:00:25]} Rac8 {[%clk 00:52:02]} {[%emt 00:06:40]} 16. Kh2
{[%clk 00:49:33]} {[%emt 00:09:12]} Qb8 {[%clk 00:48:04]} {[%emt 00:04:28]} 17.
Rcd1 {[%clk 00:45:46]} {[%emt 00:04:17]} Bf8 {[%clk 00:35:40]} {[%emt
00:12:54]} 18. Qd2 {[%clk 00:32:28]} {[%emt 00:13:47]} Rcd8 {[%clk 00:26:28]}
{[%emt 00:09:42]} 19. f4 {[%clk 00:27:34]} {[%emt 00:05:23]} g6 {[%clk
00:09:09]} {[%emt 00:17:49]} 20. Qf2 {[%clk 00:25:14]} {[%emt 00:02:50]} e5
{[%clk 00:07:08]} {[%emt 00:02:32]} 21. Nde2 {[%clk 00:15:30]} {[%emt
00:10:14]} exf4 {[%clk 00:05:44]} {[%emt 00:01:54]} 22. Nxf4 {[%clk 00:15:29]}
{[%emt 00:00:31]} Bg7 {[%clk 00:04:18]} {[%emt 00:01:57]} 23. Ncd5 {[%clk
00:07:35]} {[%emt 00:08:23]} Bxd5 {[%clk 00:03:24]} {[%emt 00:01:24]} 24. exd5
{[%clk 00:07:24]} {[%emt 00:00:41]} b5 {[%clk 00:03:00]} {[%emt 00:00:55]} 25.
cxb5 {[%clk 00:06:47]} {[%emt 00:01:06]} axb5 {[%clk 00:02:58]} {[%emt
00:00:32]} 26. Nd3 {[%clk 00:06:42]} {[%emt 00:00:34]} Rxe1 {[%clk 00:02:39]}
{[%emt 00:00:50]} 27. Rxe1 {[%clk 00:07:01]} {[%emt 00:00:11]} Re8 {[%clk
00:02:43]} {[%emt 00:00:27]} 28. Rf1 {[%clk 00:07:13]} {[%emt 00:00:17]} Qd8
{[%clk 00:02:02]} {[%emt 00:01:11]} 29. Nb4 {[%clk 00:06:05]} {[%emt 00:01:38]}
Qe7 {[%clk 00:01:24]} {[%emt 00:01:09]} 30. Nc6 {[%clk 00:05:06]} {[%emt
00:01:29]} Qe2 {[%clk 00:01:23]} {[%emt 00:00:31]} 31. Bd4 {[%clk 00:04:01]}
{[%emt 00:01:35]} Qd3 {[%clk 00:01:03]} {[%emt 00:00:50]} 32. Qf3 {[%clk
00:03:36]} {[%emt 00:00:55]} Qxf3 {[%clk 00:00:40]} {[%emt 00:00:53]} 33. Bxf3
{[%clk 00:03:38]} {[%emt 00:00:28]} h5 {[%clk 00:00:36]} {[%emt 00:00:35]} 34.
Kg2 {[%clk 00:03:19]} {[%emt 00:00:48]} Nh7 {[%clk 00:00:33]} {[%emt 00:00:34]}
35. Bxg7 {[%clk 00:01:59]} {[%emt 00:01:50]} Kxg7 {[%clk 00:01:02]} {[%emt
00:00:01]} 36. Nd4 {[%clk 00:02:18]} {[%emt 00:00:10]} b4 {[%clk 00:00:40]}
{[%emt 00:00:53]} 37. Nc6 {[%clk 00:02:36]} {[%emt 00:00:11]} Nhf6 {[%clk
00:00:33]} {[%emt 00:00:38]} 38. Nxb4 {[%clk 00:02:45]} {[%emt 00:00:20]} Rb8
{[%emt 00:00:31]} 39. Nc6 {[%clk 00:02:56]} {[%emt 00:00:18]} Rb5 {[%clk
00:00:42]} {[%emt 00:00:21]} 40. Rd1 {[%clk 00:02:08]} {[%emt 00:01:17]} Nb6
{[%clk 00:00:35]} {[%emt 00:00:38]} 41. Rd3 {[%clk 00:18:38]} {[%emt 00:14:00]}
Nbxd5 {[%clk 00:28:00]} {[%emt 00:03:06]} 42. b4 {[%clk 00:14:44]} {[%emt
00:04:23]} Nb6 {[%clk 00:20:13]} {[%emt 00:08:16]} 43. Rxd6 {[%clk 00:13:56]}
{[%emt 00:01:18]} g5 {[%clk 00:19:15]} {[%emt 00:01:29]} 44. Rd4 {[%clk
00:12:33]} {[%emt 00:01:53]} Na4 {[%clk 00:12:28]} {[%emt 00:07:17]} 45. Na7
{[%clk 00:11:06]} {[%emt 00:01:56]} Re5 {[%clk 00:12:15]} {[%emt 00:00:44]} 46.
b5 {[%clk 00:11:14]} {[%emt 00:00:22]} Nc5 {[%clk 00:11:20]} {[%emt 00:01:25]}
47. a4 {[%clk 00:08:04]} {[%emt 00:03:41]} Ne6 {[%clk 00:06:45]} {[%emt
00:05:05]} 48. Rd2 {[%clk 00:05:14]} {[%emt 00:03:19]} g4 {[%clk 00:06:29]}
{[%emt 00:00:46]} 49. hxg4 {[%clk 00:05:35]} {[%emt 00:00:09]} hxg4 {[%clk
00:06:54]} {[%emt 00:00:05]} 50. Bc6 {[%clk 00:05:02]} {[%emt 00:01:03]} Ng5
{[%clk 00:04:49]} {[%emt 00:02:35]} 51. b6 {[%clk 00:05:07]} {[%emt 00:00:24]}
Re3 {[%clk 00:04:13]} {[%emt 00:01:06]} 52. b7 {[%clk 00:05:05]} {[%emt
00:00:33]} Rb3 {[%clk 00:04:26]} {[%emt 00:00:16]} 53. Nb5 {[%clk 00:05:23]}
{[%emt 00:00:13]} 1-0

[Event "Superettan 2017/2018"]
[Site "Vegagatan 20, Gothenburg, Sweden"]
[Date "2018.02.02"]
[Round "1.15"]
[White "Olofsson-Dolk, Mattis"]
[Black "Borvander, Tom"]
[Result "1-0"]
[TimeControl "90 minutes for 40 moves + 30 minutes for the rest of the game + 30 seconds per move from move one."]
[WhiteFideId "1715178"]
[BlackFideId "1707388"]
[WhiteElo "2165"]
[BlackElo "2126"]

1. d4 {[%clk 01:30:56]} {[%emt 00:00:03]} Nf6 {[%clk 01:30:46]} {[%emt
00:00:14]} 2. c4 {[%clk 01:31:20]} {[%emt 00:00:06]} g6 {[%clk 01:31:09]}
{[%emt 00:00:07]} 3. Nc3 {[%clk 01:31:43]} {[%emt 00:00:07]} Bg7 {[%clk
01:31:32]} {[%emt 00:00:07]} 4. e4 {[%clk 01:32:04]} {[%emt 00:00:08]} d6
{[%clk 01:31:56]} {[%emt 00:00:07]} 5. h3 {[%clk 01:32:28]} {[%emt 00:00:06]}
O-O {[%clk 01:31:55]} {[%emt 00:00:32]} 6. Be3 {[%clk 01:32:47]} {[%emt
00:00:10]} Na6 {[%clk 01:29:14]} {[%emt 00:03:11]} 7. Nf3 {[%clk 01:32:25]}
{[%emt 00:00:51]} c5 {[%clk 01:29:24]} {[%emt 00:00:21]} 8. d5 {[%clk
01:31:59]} {[%emt 00:00:55]} Nc7 {[%clk 01:27:45]} {[%emt 00:02:10]} 9. Bd3
{[%clk 01:30:37]} {[%emt 00:01:51]} a6 {[%clk 01:25:22]} {[%emt 00:02:53]} 10.
a4 {[%clk 01:28:41]} {[%emt 00:02:26]} Rb8 {[%clk 01:22:33]} {[%emt 00:03:20]}
11. a5 {[%clk 01:27:46]} {[%emt 00:01:25]} Bd7 {[%clk 01:19:22]} {[%emt
00:03:41]} 12. O-O {[%clk 01:26:30]} {[%emt 00:01:44]} b5 {[%clk 01:19:08]}
{[%emt 00:00:46]} 13. axb6 {[%clk 01:26:03]} {[%emt 00:00:56]} Rxb6 {[%clk
01:19:29]} {[%emt 00:00:10]} 14. Qd2 {[%clk 01:24:03]} {[%emt 00:02:30]} Qb8
{[%clk 01:19:17]} {[%emt 00:00:42]} 15. Ra2 {[%clk 01:23:03]} {[%emt 00:01:31]}
Rd8 {[%clk 01:17:18]} {[%emt 00:02:29]} 16. e5 {[%clk 01:16:39]} {[%emt
00:06:54]} Nfe8 {[%clk 01:17:16]} {[%emt 00:00:31]} 17. Re1 {[%clk 01:12:09]}
{[%emt 00:35:34]} Qc8 {[%clk 01:13:37]} 18. Bg5 {[%clk 01:05:53]} f6 {[%clk
01:09:34]} 19. exf6 {[%clk 01:04:41]} exf6 {[%clk 01:09:34]} 20. Bh6 {[%clk
00:58:04]} Bf5 {[%clk 01:09:28]} 21. Bf1 {[%clk 00:56:14]} g5 {[%clk 01:08:21]}
22. Bxg7 {[%clk 00:54:49]} {[%emt 00:00:40]} Nxg7 {[%clk 01:08:40]} {[%emt
00:00:12]} 23. Ne4 {[%clk 00:53:48]} {[%emt 00:01:31]} Nce8 {[%clk 01:08:13]}
{[%emt 00:00:58]} 24. Qc3 {[%clk 00:50:38]} {[%emt 00:03:40]} Bxe4 {[%clk
01:04:06]} {[%emt 00:04:37]} 25. Rxe4 {[%clk 00:51:01]} {[%emt 00:00:07]} Qb7
{[%clk 01:02:47]} {[%emt 00:01:49]} 26. Qe1 {[%clk 00:44:41]} {[%emt 00:06:50]}
Kf8 {[%clk 00:58:49]} {[%emt 00:04:28]} 27. Bd3 {[%clk 00:40:26]} {[%emt
00:04:45]} Rd7 {[%clk 00:54:53]} {[%emt 00:04:25]} 28. Re2 {[%clk 00:38:38]}
{[%emt 00:02:18]} h6 {[%clk 00:55:12]} {[%emt 00:00:12]} 29. Bg6 {[%clk
00:36:54]} {[%emt 00:02:14]} Re7 {[%clk 00:55:29]} {[%emt 00:00:13]} 30. b3
{[%clk 00:35:34]} {[%emt 00:01:51]} Qd7 {[%clk 00:49:43]} {[%emt 00:06:10]} 31.
Rxe7 {[%clk 00:33:20]} {[%emt 00:02:49]} Qxe7 {[%clk 00:50:06]} {[%emt
00:00:06]} 32. Re2 {[%clk 00:33:44]} {[%emt 00:00:06]} Qd7 {[%clk 00:47:46]}
{[%emt 00:02:51]} 33. Qb1 {[%clk 00:30:41]} {[%emt 00:03:32]} Rb8 {[%clk
00:47:06]} {[%emt 00:01:11]} 34. Nh2 {[%clk 00:23:09]} {[%emt 00:08:02]} f5
{[%clk 00:43:13]} {[%emt 00:04:23]} 35. Qa1 {[%clk 00:21:31]} {[%emt 00:02:08]}
Kg8 {[%clk 00:40:42]} {[%emt 00:03:00]} 36. Bxe8 {[%clk 00:16:59]} {[%emt
00:05:02]} Rxe8 {[%clk 00:38:22]} {[%emt 00:02:52]} 37. Ra2 {[%clk 00:16:32]}
{[%emt 00:00:57]} Qb7 {[%clk 00:32:24]} {[%emt 00:06:27]} 38. Rxa6 {[%clk
00:10:16]} {[%emt 00:06:46]} Qxb3 {[%clk 00:25:04]} {[%emt 00:07:51]} 39. Ra7
{[%clk 00:08:58]} {[%emt 00:01:48]} Nh5 {[%clk 00:22:00]} {[%emt 00:03:33]} 40.
g4 {[%clk 00:05:01]} {[%emt 00:04:27]} Qb4 {[%clk 00:22:04]} {[%emt 00:00:26]}
41. Nf1 {[%clk 00:02:57]} {[%emt 00:02:34]} Re1 {[%clk 00:20:48]} {[%emt
00:01:47]} 42. Ra8+ {[%clk 00:03:01]} {[%emt 00:00:26]} Kf7 {[%clk 00:20:49]}
{[%emt 00:00:28]} 43. Qh8 {[%clk 00:22:56]} {[%emt 00:10:35]} Rxf1+ {[%clk
00:48:45]} {[%emt 00:02:34]} 44. Kxf1 {[%clk 00:22:08]} {[%emt 00:01:19]} Qb1+
{[%clk 00:48:00]} {[%emt 00:01:15]} 45. Kg2 {[%clk 00:22:06]} {[%emt 00:00:31]}
Qe4+ {[%clk 00:48:22]} {[%emt 00:00:09]} 46. Kh2 {[%clk 00:22:03]} {[%emt
00:00:33]} Qf4 {[%clk 00:48:44]} {[%emt 00:00:08]} 47. Kg1 {[%clk 00:22:24]}
{[%emt 00:00:08]} Qc1+ {[%clk 00:48:27]} {[%emt 00:00:48]} 48. Kg2 {[%clk
00:22:43]} {[%emt 00:00:10]} 1-0

[Event "Superettan 2017/2018"]
[Site "Vegagatan 20, Gothenburg, Sweden"]
[Date "2018.02.02"]
[Round "1.16"]
[White "Madebrink, Lars"]
[Black "Sevastianov, Andrii"]
[Result "0-1"]
[TimeControl "90 minutes for 40 moves + 30 minutes for the rest of the game + 30 seconds per move from move one."]
[WhiteFideId "1701347"]
[BlackFideId "1730240"]
[WhiteElo "2205"]
[BlackElo "2126"]

1. Nf3 {[%clk 01:30:58]} {[%emt 00:00:01]} e6 {[%clk 01:30:39]} {[%emt
00:00:20]} 2. c4 {[%clk 01:31:12]} {[%emt 00:00:16]} d5 {[%clk 01:30:46]}
{[%emt 00:00:23]} 3. d4 {[%clk 01:31:23]} {[%emt 00:00:19]} Nf6 {[%clk
01:31:02]} {[%emt 00:00:14]} 4. Nc3 {[%clk 01:31:20]} {[%emt 00:00:33]} Be7
{[%clk 01:30:51]} {[%emt 00:00:41]} 5. Bg5 {[%clk 01:30:36]} {[%emt 00:01:14]}
Nbd7 {[%clk 01:30:10]} {[%emt 00:01:10]} 6. e3 {[%clk 01:31:00]} {[%emt
00:00:07]} h6 {[%clk 01:30:30]} {[%emt 00:00:10]} 7. Bh4 {[%clk 01:31:14]}
{[%emt 00:00:15]} O-O {[%clk 01:30:29]} {[%emt 00:00:29]} 8. Bd3 {[%clk
01:31:23]} {[%emt 00:00:23]} c5 {[%clk 01:27:55]} {[%emt 00:03:03]} 9. cxd5
{[%clk 01:30:48]} {[%emt 00:01:07]} Nxd5 {[%clk 01:28:02]} {[%emt 00:00:22]} 10.
Bxe7 {[%clk 01:29:56]} {[%emt 00:01:23]} Nxe7 {[%clk 01:28:22]} {[%emt
00:00:09]} 11. O-O {[%clk 01:28:30]} {[%emt 00:01:58]} cxd4 {[%clk 01:20:59]}
{[%emt 00:07:51]} 12. exd4 {[%clk 01:27:01]} {[%emt 00:02:00]} Nf6 {[%clk
01:19:18]} {[%emt 00:02:10]} 13. Rc1 {[%clk 01:25:19]} {[%emt 00:02:12]} b6
{[%clk 01:11:37]} {[%emt 00:08:11]} 14. Qe2 {[%clk 01:17:19]} {[%emt 00:08:30]}
Bb7 {[%clk 01:07:08]} {[%emt 00:33:00]} 15. Rfd1 {[%clk 01:17:01]} Ned5 {[%clk
01:04:12]} 16. Bb1 {[%clk 01:15:24]} Nf4 {[%clk 00:54:26]} 17. Qe3 {[%clk
01:14:38]} N4d5 {[%clk 00:54:50]} 18. Nxd5 Qxd5 {[%clk 00:53:50]} 19. b3 {[%clk
00:54:38]} {[%emt 00:12:29]} Rac8 {[%clk 00:53:32]} {[%emt 00:00:46]} 20. Bd3
{[%clk 00:54:14]} {[%emt 00:00:55]} Rfd8 {[%clk 00:46:48]} {[%emt 00:07:13]} 21.
Rc4 {[%clk 00:51:37]} {[%emt 00:03:07]} Qh5 {[%clk 00:42:58]} {[%emt 00:04:21]}
22. Be2 {[%clk 00:48:00]} {[%emt 00:04:07]} Bd5 {[%clk 00:31:46]} {[%emt
00:11:42]} 23. Rcc1 {[%clk 00:40:48]} {[%emt 00:07:43]} Bxf3 {[%clk 00:29:27]}
{[%emt 00:02:48]} 24. Bxf3 {[%clk 00:41:07]} {[%emt 00:00:11]} Qa5 {[%clk
00:29:50]} {[%emt 00:00:07]} 25. a4 {[%clk 00:38:43]} {[%emt 00:02:55]} Nd5
{[%clk 00:27:25]} {[%emt 00:02:54]} 26. Qd3 {[%clk 00:35:17]} {[%emt 00:03:56]}
Nc3 {[%clk 00:22:40]} {[%emt 00:05:15]} 27. Re1 {[%clk 00:35:16]} {[%emt
00:00:31]} Na2 {[%clk 00:21:04]} {[%emt 00:02:05]} 28. Ra1 {[%clk 00:33:03]}
{[%emt 00:02:44]} Nb4 {[%clk 00:20:33]} {[%emt 00:01:00]} 29. Qf1 {[%clk
00:27:47]} {[%emt 00:05:47]} Nc2 {[%clk 00:20:44]} {[%emt 00:00:18]} 30. Re5
{[%clk 00:27:39]} {[%emt 00:00:39]} Qc3 {[%clk 00:18:23]} {[%emt 00:02:51]} 31.
Rc1 {[%clk 00:27:25]} {[%emt 00:00:44]} Qxb3 {[%clk 00:16:21]} {[%emt
00:02:32]} 32. d5 {[%clk 00:26:20]} {[%emt 00:01:34]} exd5 {[%clk 00:15:47]}
{[%emt 00:01:04]} 33. Qd1 {[%clk 00:24:32]} {[%emt 00:02:17]} Nd4 {[%clk
00:14:15]} {[%emt 00:02:04]} 34. Bxd5 {[%clk 00:23:32]} {[%emt 00:01:30]} Qxd1+
{[%clk 00:11:57]} {[%emt 00:02:47]} 35. Rxd1 {[%clk 00:23:49]} {[%emt
00:00:14]} Rc5 {[%clk 00:11:51]} {[%emt 00:00:35]} 36. f4 {[%clk 00:17:11]}
{[%emt 00:07:10]} Rcxd5 {[%clk 00:11:56]} {[%emt 00:00:23]} 37. Rxd5 {[%clk
00:17:29]} {[%emt 00:00:12]} Rxd5 {[%clk 00:12:10]} {[%emt 00:00:15]} 38. Kf2
{[%clk 00:17:56]} {[%emt 00:00:05]} Rd8 {[%clk 00:12:08]} {[%emt 00:00:30]} 39.
Rc1 {[%clk 00:17:48]} {[%emt 00:00:39]} Ne6 {[%clk 00:12:25]} {[%emt 00:00:13]}
40. f5 {[%clk 00:18:12]} {[%emt 00:00:07]} Nc5 {[%clk 00:12:36]} {[%emt
00:00:17]} 0-1

[Event "Superettan 2017/2018"]
[Site "Vegagatan 20, Gothenburg, Sweden"]
[Date "2018.02.03"]
[Round "2.1"]
[White "Rozentalis, Eduardas"]
[Black "Christiansen, Johan-Sebastian"]
[Result "1/2-1/2"]
[TimeControl "90 minutes for 40 moves + 30 minutes for the rest of the game + 30 seconds per move from move one."]
[WhiteTitle "GM"]
[BlackTitle "IM"]
[WhiteFideId "12800023"]
[BlackFideId "1512668"]
[WhiteElo "2520"]
[BlackElo "2498"]

1. e4 {[%clk 01:30:57]} {[%emt 00:00:02]} e6 {[%clk 01:30:55]} {[%emt
00:00:06]} 2. d4 {[%clk 01:30:50]} {[%emt 00:00:36]} d5 {[%clk 01:31:20]}
{[%emt 00:00:06]} 3. Nd2 {[%clk 01:30:23]} {[%emt 00:00:57]} Be7 {[%clk
01:31:45]} {[%emt 00:00:05]} 4. e5 {[%clk 01:29:30]} {[%emt 00:01:23]} c5
{[%clk 01:32:09]} {[%emt 00:00:05]} 5. c3 {[%clk 01:29:57]} {[%emt 00:00:03]}
cxd4 6. cxd4 {[%clk 01:30:16]} Qb6 {[%clk 01:29:11]} 7. Ndf3 {[%clk 01:27:18]}
Bb4+ {[%clk 01:29:36]} 8. Bd2 {[%clk 01:27:38]} Nc6 {[%clk 01:30:04]} 9. Bc3
{[%clk 01:22:57]} Bd7 {[%clk 01:29:12]} 10. Qd2 {[%clk 01:22:44]} Rc8 {[%clk
01:26:26]} {[%emt 00:02:26]} 11. Bd3 {[%clk 01:21:55]} {[%emt 00:01:20]} Nge7
{[%clk 01:19:57]} {[%emt 00:06:59]} 12. Ne2 {[%clk 01:20:57]} {[%emt 00:01:27]}
Bxc3 {[%clk 01:19:22]} {[%emt 00:01:06]} 13. bxc3 {[%clk 01:20:52]} {[%emt
00:00:35]} Na5 {[%clk 01:19:40]} {[%emt 00:00:11]} 14. Qg5 {[%clk 01:16:03]}
{[%emt 00:20:54]} Kf8 {[%clk 01:03:52]} {[%emt 00:00:43]} 15. h4 {[%clk
01:11:12]} {[%emt 00:05:21]} Nc4 {[%clk 01:02:51]} {[%emt 00:01:31]} 16. O-O
{[%clk 01:06:26]} {[%emt 00:05:15]} Na3 {[%clk 00:57:47]} {[%emt 00:05:34]} 17.
Qc1 {[%clk 00:46:56]} {[%emt 00:20:00]} Qa5 {[%clk 00:55:01]} {[%emt 00:03:16]}
18. Qb2 {[%clk 00:42:25]} {[%emt 00:05:00]} b6 {[%clk 00:48:46]} {[%emt
00:06:45]} 19. Rfc1 {[%clk 00:42:01]} {[%emt 00:00:54]} Nc6 {[%clk 00:42:35]}
{[%emt 00:06:42]} 20. Nd2 {[%clk 00:39:38]} {[%emt 00:02:52]} Qa4 {[%clk
00:36:54]} {[%emt 00:06:11]} 21. Nf4 {[%clk 00:36:04]} {[%emt 00:04:04]} g6
{[%clk 00:25:37]} {[%emt 00:11:47]} 22. Nb3 {[%clk 00:30:03]} {[%emt 00:06:31]}
Na5 {[%clk 00:22:58]} {[%emt 00:03:10]} 23. Qe2 {[%clk 00:27:47]} {[%emt
00:02:46]} Bb5 {[%clk 00:19:00]} {[%emt 00:04:28]} 24. Qf3 {[%clk 00:26:59]}
{[%emt 00:01:18]} Bxd3 {[%clk 00:18:38]} {[%emt 00:00:52]} 25. Nxd3 {[%clk
00:26:34]} {[%emt 00:00:54]} N5c4 {[%clk 00:16:12]} {[%emt 00:02:56]} 26. Rd1
{[%clk 00:15:34]} {[%emt 00:11:30]} Qd7 {[%clk 00:08:11]} {[%emt 00:08:31]} 27.
Rac1 {[%clk 00:15:09]} {[%emt 00:00:55]} Qe7 {[%clk 00:08:17]} {[%emt
00:00:23]} 28. Qg3 {[%clk 00:14:55]} {[%emt 00:00:44]} Ke8 {[%clk 00:08:14]}
{[%emt 00:00:34]} 29. Nf4 {[%clk 00:14:37]} {[%emt 00:00:49]} Kd7 {[%clk
00:07:37]} {[%emt 00:01:06]} 30. Rd3 {[%clk 00:14:45]} {[%emt 00:00:21]} Rhf8
{[%clk 00:06:51]} {[%emt 00:01:18]} 31. Rf3 {[%clk 00:13:37]} {[%emt 00:01:38]}
a5 {[%clk 00:07:00]} {[%emt 00:00:21]} 32. Qh3 {[%clk 00:13:16]} {[%emt
00:00:49]} Kc7 {[%clk 00:06:50]} {[%emt 00:00:41]} 33. Rd1 {[%clk 00:13:04]}
{[%emt 00:00:42]} Kb7 {[%clk 00:06:27]} {[%emt 00:00:54]} 34. Nd2 {[%clk
00:12:23]} {[%emt 00:01:11]} Rc7 {[%clk 00:06:14]} {[%emt 00:00:43]} 35. Nxc4
{[%clk 00:12:14]} {[%emt 00:00:39]} Nxc4 {[%clk 00:06:25]} {[%emt 00:00:19]} 36.
h5 {[%clk 00:07:13]} {[%emt 00:05:31]} g5 {[%clk 00:02:50]} {[%emt 00:04:05]}
37. Nd3 {[%clk 00:04:02]} {[%emt 00:03:41]} Qa3 {[%clk 00:02:20]} {[%emt
00:01:00]} 38. Qg4 {[%clk 00:03:01]} {[%emt 00:01:31]} h6 {[%clk 00:01:54]}
{[%emt 00:00:56]} 39. Rf6 {[%clk 00:03:25]} {[%emt 00:00:05]} Rh8 {[%clk
00:01:19]} {[%emt 00:01:05]} 40. Qf3 {[%clk 00:03:29]} {[%emt 00:00:27]} Rh7
{[%clk 00:01:48]} {[%emt 00:00:01]} 41. Qe2 {[%clk 00:25:05]} {[%emt 00:08:54]}
Qxc3 {[%clk 00:27:14]} {[%emt 00:05:03]} 42. Nc5+ {[%clk 00:21:08]} {[%emt
00:04:28]} Ka7 {[%clk 00:19:08]} {[%emt 00:08:36]} 43. Na4 {[%clk 00:20:41]}
{[%emt 00:00:57]} Qb4 {[%clk 00:16:38]} {[%emt 00:03:00]} 44. Qc2 {[%clk
00:20:25]} {[%emt 00:00:46]} Rh8 {[%clk 00:16:35]} {[%emt 00:00:35]} 45. Rb1
{[%clk 00:19:33]} {[%emt 00:01:21]} Qd2 {[%clk 00:11:51]} {[%emt 00:05:14]} 46.
Qxd2 {[%clk 00:07:20]} {[%emt 00:12:42]} Nxd2 {[%clk 00:12:20]} {[%emt
00:00:02]} 47. Rxb6 {[%clk 00:05:09]} {[%emt 00:02:41]} Ne4 {[%clk 00:12:44]}
{[%emt 00:00:06]} 48. Rb5 {[%clk 00:05:26]} {[%emt 00:00:13]} Nxf6 {[%clk
00:12:48]} {[%emt 00:00:25]} 49. Rxa5+ {[%clk 00:05:37]} {[%emt 00:00:19]} Kb8
{[%clk 00:04:30]} {[%emt 00:08:49]} 50. exf6 {[%clk 00:06:01]} {[%emt
00:00:06]} Ra7 {[%clk 00:04:56]} {[%emt 00:00:04]} 51. Rb5+ {[%clk 00:05:59]}
{[%emt 00:00:32]} Kc7 {[%clk 00:05:17]} {[%emt 00:00:09]} 52. Nc5 {[%clk
00:04:33]} {[%emt 00:01:56]} Rb8 {[%clk 00:01:41]} {[%emt 00:04:06]} 53. Rxb8
{[%clk 00:04:40]} {[%emt 00:00:23]} Kxb8 {[%clk 00:02:10]} {[%emt 00:00:01]} 54.
Nd3 {[%clk 00:04:41]} {[%emt 00:00:29]} Kc7 {[%clk 00:01:49]} {[%emt 00:00:51]}
55. Ne5 {[%clk 00:05:09]} {[%emt 00:00:02]} Kd6 {[%clk 00:02:01]} {[%emt
00:00:17]} 56. f3 {[%clk 00:05:15]} {[%emt 00:00:24]} Rxa2 {[%clk 00:00:41]}
{[%emt 00:01:51]} 57. Nxf7+ {[%clk 00:05:40]} {[%emt 00:00:05]} Kd7 {[%clk
00:01:10]} {[%emt 00:00:01]} 58. Nxh6 {[%clk 00:05:42]} {[%emt 00:00:28]} Ke8
{[%clk 00:01:29]} {[%emt 00:00:11]} 59. g4 {[%clk 00:04:28]} {[%emt 00:01:44]}
Ra3 {[%clk 00:00:42]} {[%emt 00:01:17]} 60. Kf2 {[%clk 00:04:25]} {[%emt
00:00:31]} Ra2+ {[%clk 00:00:41]} {[%emt 00:00:33]} 61. Ke3 {[%clk 00:04:19]}
{[%emt 00:00:35]} Ra3+ {[%clk 00:00:40]} {[%emt 00:00:32]} 62. Kf2 {[%clk
00:04:11]} {[%emt 00:00:38]} Ra2+ {[%clk 00:00:37]} {[%emt 00:00:33]} 63. Ke3
{[%clk 00:04:17]} {[%emt 00:00:23]} Ra3+ {[%clk 00:00:38]} {[%emt 00:00:30]}
1/2-1/2